bitfinex-derivatives/quotes_ETHF0:USTF0_20240922
["timestamp","ask_amount","ask_price","bid_price","bid_amount"]
[1726970994045,8.04450795,2598.4,2597.6,0.53254599]
[1726970994246,1.39,2597.9,2597.8,0.387]
[1726970995948,3.2078,2598.1,2597.8,0.387]
[1726970996151,5.511,2598.1,2597.8,0.387]
[1726970996358,3.0,2598.1,2597.8,0.387]
[1726970999155,3.0,2598.1,2597.8,0.65641]
[1726970999353,3.0,2598.1,2597.8,0.387]
[1726970999549,3.0,2598.1,2597.9,0.2694]
[1726970999964,3.0,2598.1,2597.8,0.65641]
[1726971000461,6.1185,2598.4,2597.9,3.8488]
[1726971000794,3.0,2598.2,2598.0,0.26939]
[1726971000965,3.0,2598.2,2597.8,0.65641]
[1726971001451,3.0,2598.2,2597.9,0.2694]
[1726971001852,3.0,2598.2,2597.9,3.8488]
[1726971002057,3.0,2598.2,2597.9,4.1182]
[1726971002450,3.0,2598.2,2597.9,0.2694]
[1726971004582,3.0,2598.2,2597.8,0.65641]
[1726971004762,3.0,2598.0,2597.8,0.387]
[1726971005157,3.0,2598.0,2597.8,4.2366]
[1726971006958,3.0,2598.0,2597.8,0.387]
[1726971007263,3.4035,2598.0,2597.8,0.387]
[1726971008862,3.4035,2598.0,2597.4,0.26945]
[1726971009059,3.0,2597.8,2597.4,0.7989]
[1726971009266,3.0,2597.5,2597.4,0.4036]
[1726971009464,6.2078,2597.5,2597.4,0.4036]
[1726971010558,6.2078,2597.5,2597.1,0.66478]
[1726971010559,6.2078,2597.5,2597.1,0.3953]
[1726971010759,3.0,2597.3,2597.1,0.3953]
[1726971012070,3.0,2597.3,2596.9,1.04601]
[1726971012266,3.0,2597.0,2596.9,1.1668]
[1726971012469,3.0,2597.0,2596.9,0.7939]
[1726971012768,3.0,2597.0,2596.9,0.4036]
[1726971013171,3.0,2597.0,2596.3,3.2078]
[1726971013466,3.0,2597.0,2596.6,0.26954]
[1726971013669,3.0,2597.0,2596.5,0.3903]
[1726971013863,3.0,2597.0,2596.6,0.26953]
[1726971014560,6.2078,2597.0,2596.7,0.66353]
[1726971014782,3.0,2597.0,2596.7,0.66353]
[1726971014972,3.0,2597.0,2596.7,0.66352]
[1726971015276,3.0,2597.2,2596.9,0.26951]
[1726971015467,3.0,2597.2,2597.0,0.7483]
[1726971015663,3.0,2597.4,2597.2,0.26947]
[1726971016170,3.3763,2597.6,2597.2,4.11987]
[1726971016371,3.3763,2597.6,2597.3,0.26946]
[1726971016670,3.3763,2597.6,2597.2,0.26947]
[1726971016965,3.3763,2597.6,2597.3,0.26946]
[1726971018381,3.3763,2597.6,2597.3,0.26947]
[1726971019065,3.3763,2597.6,2597.0,4.22559]
[1726971019066,3.0,2597.4,2597.0,4.22559]
[1726971019268,6.2078,2597.4,2597.0,0.7483]
[1726971019471,0.3766,2597.3,2597.0,0.7483]
[1726971019869,0.3766,2597.3,2597.1,0.26948]
[1726971020061,3.0,2597.2,2597.0,0.373]
[1726971020466,3.6019,2597.1,2597.0,0.373]
[1726971020965,3.6019,2597.1,2596.8,0.26951]
[1726971021469,3.6019,2597.1,2596.9,0.26951]
[1726971021878,3.6019,2597.1,2596.8,0.26951]
[1726971022572,3.6019,2597.1,2596.9,0.26951]
[1726971022782,3.6019,2597.1,2596.7,0.7723]
[1726971022783,3.6019,2597.1,2597.0,0.2695]
[1726971023370,3.6019,2597.1,2596.9,0.2695]
[1726971023574,6.6019,2597.1,2596.9,0.2695]
[1726971024481,6.6019,2597.1,2596.8,0.26951]
[1726971024694,3.0,2596.9,2596.5,4.102]
[1726971024974,3.0,2596.9,2596.6,0.26953]
[1726971026979,3.0,2596.9,2596.5,0.3977]
[1726971027176,6.6019,2597.1,2596.7,0.26952]
[1726971027976,6.6019,2597.1,2596.8,0.26952]
[1726971028379,6.6019,2597.1,2596.9,0.2695]
[1726971028679,3.6019,2597.1,2596.9,0.2695]
[1726971029272,3.6019,2597.1,2597.0,0.2695]
[1726971029476,3.6019,2597.1,2596.5,0.7825]
[1726971029477,3.6019,2597.1,2596.9,0.2695]
[1726971030074,3.6019,2597.1,2596.8,0.26951]
[1726971030377,6.6019,2597.1,2596.7,0.26952]
[1726971030576,6.6019,2597.1,2596.5,0.7825]
[1726971030577,6.6019,2597.1,2596.8,0.26952]
[1726971030788,6.6019,2597.1,2596.9,0.2695]
[1726971031176,3.8504,2597.0,2596.4,3.2078]
[1726971031370,3.0,2596.9,2596.6,0.26953]
[1726971032083,0.7715,2596.8,2596.5,0.26955]
[1726971032379,3.9793,2596.8,2596.4,0.26955]
[1726971032680,3.0,2596.6,2596.3,0.66306]
[1726971033179,3.0,2596.6,2596.4,0.26956]
[1726971035183,0.3951,2596.7,2596.5,0.26954]
[1726971035383,0.3951,2596.7,2596.6,0.26954]
[1726971035579,0.3951,2596.7,2596.5,0.26954]
[1726971035982,0.3774,2596.6,2596.5,0.26954]
[1726971037277,0.3774,2596.6,2596.3,0.3935]
[1726971037485,0.75,2596.6,2596.5,0.26955]
[1726971038187,0.75,2596.6,2596.3,0.3935]
[1726971038488,0.75,2596.6,2596.4,0.26955]
[1726971038688,3.75,2596.6,2596.3,0.66306]
[1726971038990,6.9578,2596.6,2596.4,0.26956]
[1726971039183,6.9578,2596.6,2596.4,0.26955]
[1726971039587,3.8512,2596.5,2596.1,3.2078]
[1726971039882,6.2078,2596.3,2595.9,0.3947]
[1726971040185,6.2078,2596.3,2596.0,0.2696]
[1726971040487,0.3642,2596.2,2596.0,0.2696]
[1726971040683,0.3642,2596.2,2595.9,0.6643]
[1726971040889,0.3642,2596.2,2596.0,0.2696]
[1726971041090,0.3642,2596.2,2595.9,0.66431]
[1726971041292,0.3642,2596.2,2596.0,0.2696]
[1726971042484,0.3642,2596.2,2595.7,3.2078]
[1726971042485,0.2696,2596.0,2595.7,3.2078]
[1726971042686,0.2696,2596.0,2595.1,0.42008106]
[1726971042687,3.0,2595.8,2594.7,3.2078]
[1726971042884,3.2078,2596.0,2595.3,3.2078]
[1726971042885,3.5874,2595.9,2595.3,3.2078]
[1726971043084,6.1794,2595.9,2595.3,3.2078]
[1726971043287,0.3787,2595.8,2595.3,3.47747]
[1726971043484,3.2078,2595.6,2594.8,0.388]
[1726971043683,0.3794,2595.5,2595.0,3.2078]
[1726971043982,0.3794,2595.5,2594.9,1.31113173]
[1726971043983,0.3794,2595.5,2595.2,0.26968]
[1726971044182,0.3794,2595.5,2594.9,3.2078]
[1726971044384,0.3794,2595.5,2594.8,0.7551]
[1726971044385,0.3794,2595.5,2595.1,0.26969]
[1726971044586,0.3794,2595.5,2595.0,0.2697]
[1726971044980,0.3794,2595.5,2595.0,3.2078]
[1726971045185,6.2078,2595.7,2595.0,3.2078]
[1726971045186,0.3811,2595.4,2595.0,3.2078]
[1726971045411,0.3811,2595.4,2595.3,0.26967]
[1726971045907,0.3811,2595.4,2595.2,0.26968]
[1726971046304,0.3811,2595.4,2595.3,0.26967]
[1726971046807,0.3811,2595.4,2595.2,0.26968]
[1726971047006,0.3811,2595.4,2595.3,0.26967]
[1726971047401,0.3811,2595.4,2595.2,0.26968]
[1726971047605,0.3811,2595.4,2595.0,3.2078]
[1726971047606,0.3811,2595.4,2595.3,0.26967]
[1726971048008,0.3811,2595.4,2595.2,0.26967]
[1726971048311,0.3811,2595.4,2595.2,0.26968]
[1726971048804,0.3811,2595.4,2595.0,3.2078]
[1726971048805,0.3811,2595.4,2595.1,0.26969]
[1726971049111,0.3811,2595.4,2595.2,0.26968]
[1726971049413,0.3811,2595.4,2595.1,0.26969]
[1726971050210,0.3811,2595.4,2594.8,0.7551]
[1726971050411,0.3811,2595.4,2594.9,0.2697]
[1726971050412,0.3718,2595.3,2594.9,0.2697]
[1726971050712,0.3718,2595.3,2594.9,0.26971]
[1726971050913,0.7714,2595.3,2594.9,0.26971]
[1726971051300,3.0,2595.0,2594.6,3.2078]
[1726971051502,0.3713,2594.9,2594.6,3.2078]
[1726971051709,0.7714,2595.3,2594.9,0.26971]
[1726971052007,0.7714,2595.3,2595.1,0.26969]
[1726971052008,0.3713,2595.2,2595.1,0.26969]
[1726971052505,5.9578,2595.7,2595.0,0.3912]
[1726971052506,3.5887,2595.7,2595.0,0.3912]
[1726971052813,0.3713,2595.5,2595.4,0.26966]
[1726971053407,0.3713,2595.5,2595.3,0.26967]
[1726971053613,3.2078,2595.7,2595.2,3.5956]
[1726971053805,0.3713,2595.6,2595.4,0.26966]
[1726971053998,0.3713,2595.6,2595.5,0.26965]
[1726971054809,0.3713,2595.6,2595.2,3.5956]
[1726971054810,3.2078,2595.7,2595.3,0.26967]
[1726971055108,3.2078,2595.7,2595.2,0.26967]
[1726971055109,0.3873,2595.5,2595.2,0.26967]
[1726971055413,0.3873,2595.5,2595.2,0.26968]
[1726971055607,0.3873,2595.5,2595.3,0.26967]
[1726971055803,0.3873,2595.5,2595.4,0.26966]
[1726971056009,3.2078,2595.7,2595.4,0.26966]
[1726971057310,3.0,2595.6,2595.3,0.26967]
[1726971057504,3.0,2595.6,2595.2,0.4021]
[1726971057704,3.0,2595.6,2595.3,0.26967]
[1726971058100,3.0,2595.6,2595.2,0.67177]
[1726971058909,3.0,2595.6,2595.2,0.26968]
[1726971059212,3.0,2595.6,2594.4,7.3098]
[1726971059213,6.2078,2595.4,2594.4,7.3098]
[1726971059415,6.2078,2595.4,2594.7,0.26973]
[1726971059416,3.0,2595.1,2594.7,0.26973]
[1726971059805,3.0,2595.1,2594.6,0.26974]
[1726971060001,3.0,2595.1,2594.7,0.26973]
[1726971060206,3.2078,2595.8,2594.8,3.2078]
[1726971060405,0.3686,2595.7,2595.4,3.2078]
[1726971060612,0.3686,2595.7,2595.4,3.47746]
[1726971060810,0.3686,2595.7,2595.4,3.2078]
[1726971061316,0.3686,2595.7,2595.4,3.47746]
[1726971061815,0.3686,2595.7,2595.2,0.26968]
[1726971062210,0.3686,2595.7,2595.1,3.5897]
[1726971062406,3.3686,2595.7,2595.1,3.85939]
[1726971062612,0.3886,2595.6,2595.1,3.5897]
[1726971063113,0.3886,2595.6,2595.1,0.3819]
[1726971063306,3.2078,2595.5,2595.1,0.3819]
[1726971063507,0.3886,2595.6,2595.1,0.3819]
[1726971063709,0.3886,2595.6,2595.1,0.65159]
[1726971064517,0.3886,2595.6,2595.1,0.3819]
[1726971065307,3.26966,2595.5,2595.0,0.3661]
[1726971065611,0.26968,2595.3,2594.8,0.3841]
[1726971065912,0.7622,2595.2,2594.8,0.3841]
[1726971066219,3.7622,2595.2,2594.8,0.26972]
[1726971066611,0.7622,2595.2,2594.7,0.7682]
[1726971066810,3.2078,2595.5,2595.1,0.26969]
[1726971067011,6.3417,2595.5,2595.2,0.3865]
[1726971067616,3.5907,2595.5,2595.2,0.3865]
[1726971067922,0.3829,2595.5,2595.2,0.3865]
[1726971070218,0.3999,2595.4,2594.9,3.2078]
[1726971070523,0.3999,2595.4,2594.9,3.47751]
[1726971071317,0.3999,2595.4,2594.9,3.2078]
[1726971072022,0.26968,2595.3,2594.9,3.2078]
[1726971072223,3.26971,2595.0,2594.5,0.3875]
[1726971072748,0.7967,2594.9,2594.5,0.3875]
[1726971073223,0.4007,2594.9,2594.5,0.3875]
[1726971073519,0.4007,2594.9,2594.6,0.26974]
[1726971073911,0.4007,2594.9,2594.5,0.65725]
[1726971074426,0.4007,2594.9,2594.5,0.3875]
[1726971074625,0.3762,2594.8,2594.5,0.65726]
[1726971075217,0.3762,2594.8,2594.5,0.3875]
[1726971075423,0.3762,2594.8,2594.5,0.65725]
[1726971075622,0.3762,2594.8,2594.5,0.3875]
[1726971076720,0.3762,2594.8,2594.4,3.5749]
[1726971077224,0.3762,2594.8,2594.4,3.84466]
[1726971077424,0.3762,2594.8,2594.4,3.5749]
[1726971077629,0.3762,2594.8,2594.4,3.84466]
[1726971078523,0.3762,2594.8,2594.4,3.5749]
[1726971078723,3.2078,2595.1,2594.4,3.5749]
[1726971078924,0.3958,2595.2,2594.7,3.47753]
[1726971079125,0.3958,2595.2,2594.8,0.3917]
[1726971079367,0.3958,2595.2,2594.9,0.3905]
[1726971079633,0.67401,2596.0,2594.9,0.3905]
[1726971079634,0.3958,2595.6,2595.1,3.0]
[1726971079818,0.3958,2595.6,2595.3,3.47747]
[1726971080020,0.3958,2595.6,2595.4,0.66016]
[1726971080226,0.3958,2595.6,2595.4,0.3905]
[1726971080428,0.3945,2595.9,2595.4,0.66016]
[1726971081519,0.3945,2595.9,2595.4,0.3905]
[1726971081816,3.3945,2595.9,2595.4,0.3905]
[1726971082219,3.3945,2595.9,2595.4,0.66016]
[1726971082418,3.3945,2595.9,2595.4,0.3905]
[1726971084219,0.3945,2595.9,2595.4,0.66016]
[1726971084420,0.3958,2596.0,2595.8,3.2078]
[1726971084624,3.5762,2596.5,2596.0,0.26959]
[1726971084829,3.5762,2596.5,2596.1,0.26959]
[1726971084830,3.5756,2596.5,2596.1,0.26959]
[1726971085027,3.5756,2596.5,2596.0,0.65909]
[1726971085730,6.5756,2596.5,2596.0,0.3895]
[1726971085918,6.5756,2596.5,2595.9,0.7743]
[1726971085919,6.5756,2596.5,2595.9,2.27879358]
[1726971086123,6.5756,2596.5,2596.0,3.2078]
[1726971087529,6.5756,2596.5,2596.0,3.4774]
[1726971087831,6.5756,2596.5,2596.0,3.2078]
[1726971088126,6.5756,2596.5,2596.0,3.4774]
[1726971088335,3.2078,2596.5,2596.2,0.26957]
[1726971088632,3.2078,2596.5,2596.3,0.26956]
[1726971088933,3.2078,2596.5,2596.4,0.3896]
[1726971089427,3.5942,2596.8,2596.4,0.3896]
[1726971089929,3.0,2596.7,2596.4,0.3896]
[1726971090526,9.60889,2597.1,2596.5,0.66024]
[1726971090720,7.25669,2597.1,2596.5,0.66024]
[1726971090930,6.9872,2597.1,2596.6,0.26954]
[1726971091825,6.9872,2597.1,2596.5,0.3907]
[1726971092231,3.26951,2596.9,2596.5,0.3907]
[1726971092430,3.0,2596.7,2596.5,0.3907]
[1726971093126,6.2078,2596.7,2596.5,0.3907]
[1726971093430,6.2078,2596.7,2596.4,0.3896]
[1726971093636,0.3798,2596.6,2596.4,0.3896]
[1726971095021,0.64934,2596.6,2596.4,0.3896]
[1726971095531,0.3798,2596.6,2596.4,0.3896]
[1726971097222,0.3798,2596.6,2596.1,0.4004]
[1726971097423,3.0,2596.4,2596.1,0.8033]
[1726971097631,6.2078,2596.4,2596.1,0.4004]
[1726971098027,3.0,2596.4,2596.1,0.4004]
[1726971098335,4.03394,2596.6,2596.2,0.4029]
[1726971098532,3.2078,2596.4,2596.2,0.4029]
[1726971099034,3.2078,2596.4,2595.7,3.117]
[1726971099035,0.26957,2596.3,2595.8,0.26962]
[1726971099339,0.26957,2596.3,2595.8,1.05732]
[1726971099540,0.3695,2596.2,2595.8,1.05732]
[1726971099729,0.3695,2596.2,2595.9,0.26961]
[1726971100237,0.3695,2596.2,2595.8,1.05732]
[1726971100629,0.63908,2596.2,2595.8,0.7877]
[1726971100834,0.63908,2596.2,2595.6,3.2078]
[1726971100835,3.3695,2596.2,2595.6,3.2078]
[1726971101027,4.2463,2596.1,2595.6,3.2078]
[1726971101545,4.2463,2596.1,2595.6,3.47744]
[1726971101546,4.24629,2596.1,2595.6,3.47744]
[1726971101735,3.9767,2596.1,2595.6,0.26964]
[1726971101934,3.9767,2596.1,2595.5,0.26965]
[1726971101935,4.24629,2596.1,2595.5,0.26965]
[1726971102737,0.26962,2595.9,2595.3,0.26967]
[1726971103038,3.2078,2595.7,2595.3,0.3781]
[1726971103538,0.777,2595.6,2595.3,0.3781]
[1726971103734,3.9848,2595.6,2595.3,0.3781]
[1726971103939,3.9848,2595.6,2594.9,0.6679]
[1726971103940,0.26966,2595.5,2594.9,0.6679]
[1726971104235,3.2078,2595.3,2594.8,3.2078]
[1726971104438,3.2078,2595.3,2594.9,0.26971]
[1726971105133,3.2078,2595.3,2594.8,3.2078]
[1726971105134,3.2078,2595.3,2594.8,3.47752]
[1726971105340,3.2078,2595.3,2594.8,0.26972]
[1726971105637,3.2078,2595.3,2594.7,1.03543]
[1726971105838,3.47748,2595.3,2594.7,0.7657]
[1726971106636,3.47748,2595.3,2594.7,1.03543]
[1726971106637,3.2078,2595.3,2594.7,1.03543]
[1726971107730,6.2078,2595.2,2594.5,3.2078]
[1726971107931,3.0,2595.0,2594.5,3.2078]
[1726971108135,3.585,2594.9,2594.5,3.2078]
[1726971108532,3.85472,2594.9,2594.5,3.2078]
[1726971108734,3.585,2594.9,2594.5,3.2078]
[1726971108932,0.3765,2594.8,2594.5,3.2078]
[1726971109334,0.64623,2594.8,2594.5,3.2078]
[1726971109935,0.64623,2594.8,2593.9,9.788]
[1726971109936,6.8544,2594.7,2593.8,4.71229358]
[1726971110144,3.26977,2594.4,2593.8,4.24742]
[1726971110331,0.4028,2594.3,2593.8,4.24742]
[1726971110531,0.4028,2594.3,2593.8,3.9776]
[1726971110737,0.4028,2594.3,2593.8,4.24742]
[1726971110932,0.4028,2594.3,2593.9,0.26982]
[1726971111133,0.4028,2594.3,2593.8,3.86602]
[1726971111341,3.0,2594.1,2593.8,3.2078]
[1726971111543,3.0,2593.9,2593.5,3.2078]
[1726971111744,3.0,2593.9,2593.5,3.47766]
[1726971111937,3.0,2593.9,2593.5,3.2078]
[1726971112548,3.26983,2593.9,2593.5,3.2078]
[1726971112747,3.0,2593.9,2593.5,3.2078]
[1726971113041,3.0,2593.9,2593.5,3.47765]
[1726971113344,0.4028,2594.3,2593.7,3.0]
[1726971113548,0.4028,2594.3,2593.9,0.26981]
[1726971113746,0.4028,2594.3,2594.0,0.3808]
[1726971114444,3.84766,2594.5,2594.0,0.3808]
[1726971114445,3.5779,2594.5,2594.0,0.3808]
[1726971114646,3.5779,2594.5,2594.0,0.6506]
[1726971115242,3.0,2594.4,2594.0,0.3808]
[1726971115643,3.0,2594.4,2594.0,0.65061]
[1726971115842,3.0,2594.4,2593.7,3.2078]
[1726971116047,3.0,2594.4,2593.9,0.3698]
[1726971116648,3.0,2594.4,2593.9,0.63962]
[1726971117047,3.26977,2594.4,2593.9,0.3698]
[1726971117680,3.0,2594.4,2593.9,0.3698]
[1726971118149,3.0,2594.4,2594.0,0.26981]
[1726971118349,3.0,2594.4,2593.9,0.63961]
[1726971119550,3.26977,2594.4,2593.9,0.3698]
[1726971119748,3.0,2594.4,2593.9,0.3698]
[1726971120248,3.0,2594.4,2593.9,0.63962]
[1726971120448,0.3994,2594.6,2594.1,3.2078]
[1726971120643,0.3994,2594.6,2594.3,0.26977]
[1726971120948,0.3994,2594.6,2594.4,0.4008]
[1726971121149,3.3994,2594.6,2594.4,0.4008]
[1726971121345,7.52355,2594.6,2594.0,0.2698]
[1726971121543,3.0,2594.3,2593.9,0.26981]
[1726971122156,3.0,2594.3,2593.8,0.7676]
[1726971122959,3.26978,2594.3,2593.8,0.7676]
[1726971123341,3.0,2594.3,2593.8,0.7676]
[1726971123564,3.26978,2594.3,2593.8,0.7676]
[1726971123752,3.0,2594.3,2593.8,0.7676]
[1726971123951,0.4022,2594.2,2593.8,1.03743]
[1726971124150,3.2078,2594.0,2593.1,3.2078]
[1726971124456,3.2078,2594.0,2593.4,0.3961]
[1726971124457,3.26983,2593.9,2593.4,0.3961]
[1726971124656,3.66783,2593.9,2593.4,0.66597]
[1726971125248,3.398,2593.9,2593.4,0.3961]
[1726971125555,3.398,2593.9,2593.4,0.66597]
[1726971126749,3.398,2593.9,2593.4,0.3961]
[1726971127247,3.398,2593.9,2593.4,0.66597]
[1726971127443,3.398,2593.9,2593.4,0.3961]
[1726971128647,3.398,2593.9,2593.4,0.66597]
[1726971128858,3.398,2593.9,2593.4,0.3961]
[1726971129058,3.66782,2593.9,2593.4,0.3961]
[1726971130360,3.66782,2593.9,2593.4,0.26987]
[1726971130661,3.398,2593.9,2593.2,3.5816]
[1726971130959,3.2078,2594.0,2593.3,6.2078]
[1726971131160,3.2078,2594.0,2593.2,3.5816]
[1726971131360,3.3852,2594.1,2593.2,3.5816]
[1726971131583,3.3852,2594.1,2593.7,0.26983]
[1726971131754,3.3852,2594.1,2593.8,0.3994]
[1726971133053,3.0,2593.9,2593.6,0.3811]
[1726971133249,3.0,2593.9,2593.5,3.2078]
[1726971133458,0.3661,2593.8,2593.4,0.26987]
[1726971133653,0.3661,2593.8,2593.5,0.26986]
[1726971134055,0.3661,2593.8,2593.4,0.26986]
[1726971134358,0.3661,2593.8,2593.5,0.26986]
[1726971134557,0.3661,2593.8,2593.4,0.26987]
[1726971134853,0.3661,2593.8,2593.3,0.66927]
[1726971135055,0.3661,2593.8,2593.4,0.26987]
[1726971135251,0.3661,2593.8,2593.3,0.66928]
[1726971135456,0.3661,2593.8,2593.4,0.26987]
[1726971135656,0.3661,2593.8,2593.3,0.3994]
[1726971136352,0.3661,2593.8,2593.4,0.26987]
[1726971137255,0.3661,2593.8,2593.3,0.66928]
[1726971138159,0.3661,2593.8,2593.4,0.26987]
[1726971138461,0.63593,2593.8,2593.3,0.3994]
[1726971138655,3.2078,2593.7,2593.3,0.66928]
[1726971139260,0.26985,2593.6,2593.3,0.3994]
[1726971139460,0.7905,2593.6,2593.3,0.3994]
[1726971141765,3.2078,2593.7,2593.3,0.3994]
[1726971142463,3.2078,2593.7,2593.3,0.66928]
[1726971142963,3.2078,2593.7,2593.3,0.3994]
[1726971143467,3.2078,2593.7,2593.3,0.66927]
[1726971144761,3.0,2594.2,2593.4,3.2078]
[1726971144967,2.91374,2594.7,2594.1,0.26979]
[1726971145266,2.91374,2594.7,2594.2,0.7728]
[1726971145267,4.06404,2594.7,2594.2,0.7728]
[1726971145566,3.2078,2594.6,2594.2,0.7728]
[1726971146567,3.2078,2594.6,2594.3,0.26978]
[1726971146955,3.2078,2594.6,2594.2,1.04258]
[1726971148082,3.2078,2594.6,2594.3,0.26978]
[1726971148262,3.2078,2594.6,2594.2,1.04258]
[1726971148861,3.2078,2594.6,2594.2,0.7728]
[1726971149063,3.2078,2594.6,2594.2,1.04259]
[1726971149765,3.2078,2594.6,2594.0,4.2108785]
[1726971149766,0.26979,2594.2,2594.0,1.0030785]
[1726971149970,3.3963,2594.1,2593.7,3.2078]
[1726971150161,0.7838,2594.0,2593.7,3.2078]
[1726971150557,1.05361,2594.0,2593.7,3.2078]
[1726971150762,0.7838,2594.0,2593.7,3.2078]
[1726971150971,1.05361,2594.0,2593.7,3.2078]
[1726971151164,0.26982,2593.9,2593.5,0.7965]
[1726971151477,3.9916,2594.0,2593.5,2.0694385]
[1726971151478,4.26141,2594.0,2593.5,2.0694385]
[1726971151776,4.26141,2594.0,2593.5,1.7995785]
[1726971151777,3.9916,2594.0,2593.5,1.7995785]
[1726971152065,3.9916,2594.0,2593.5,1.06636]
[1726971152066,4.26141,2594.0,2593.5,1.06636]
[1726971152469,4.26141,2594.0,2593.5,2.0694385]
[1726971152871,4.26141,2594.0,2593.5,2.0694285]
[1726971153175,4.26141,2594.0,2593.5,1.06635]
[1726971153372,4.26141,2594.0,2593.5,2.0694285]
[1726971153569,0.26982,2593.9,2593.5,2.0694285]
[1726971153766,0.26982,2593.9,2593.5,1.0030785]
[1726971154078,0.26982,2593.9,2593.4,1.2729385]
[1726971154371,0.26982,2593.9,2593.5,1.0030785]
[1726971154572,0.26983,2593.8,2593.5,1.0030785]
[1726971154768,3.9916,2594.0,2593.5,1.0030785]
[1726971155075,3.9916,2594.0,2593.5,1.2729385]
[1726971155076,0.26982,2593.9,2593.5,1.2729385]
[1726971155270,4.26141,2594.0,2593.6,0.26985]
[1726971155469,4.26141,2594.0,2593.5,1.0030785]
[1726971155470,3.9916,2594.0,2593.5,1.0030785]
[1726971155667,3.9916,2594.0,2593.6,1.0030785]
[1726971155970,3.9916,2594.0,2593.4,1.50449358]
[1726971155971,0.26983,2593.9,2593.5,1.0030785]
[1726971156377,0.26983,2593.8,2593.5,1.0030785]
[1726971156567,3.0,2593.6,2593.5,1.0030785]
[1726971156877,0.26986,2593.5,2593.2,1.0030785]
[1726971157078,1.126,2593.5,2593.2,1.0030785]
[1726971157272,1.126,2593.5,2593.2,0.26989]
[1726971158079,1.126,2593.5,2593.1,1.2729785]
[1726971158271,3.2078,2593.4,2593.1,1.0030785]
[1726971158673,1.39586,2593.5,2593.1,1.0030785]
[1726971158975,1.126,2593.5,2593.1,1.2729785]
[1726971159176,1.39586,2593.5,2593.1,1.0030785]
[1726971159568,1.39587,2593.5,2593.1,1.0030785]
[1726971159764,1.39587,2593.5,2593.0,1.7758785]
[1726971159765,3.0,2593.3,2593.0,1.7758785]
[1726971159964,3.0,2593.3,2593.0,1.04271]
[1726971160179,3.0,2593.3,2593.0,0.7728]
[1726971160377,1.126,2593.5,2593.0,0.7728]
[1726971160572,1.126,2593.5,2593.1,0.26989]
[1726971160880,1.126,2593.5,2593.0,2.0457785]
[1726971161265,1.126,2593.5,2593.0,1.7758785]
[1726971161476,1.39587,2593.5,2593.0,1.04271]
[1726971161686,3.2078,2593.4,2593.0,1.04271]
[1726971161872,3.2078,2593.4,2593.0,2.0457885]
[1726971162175,3.2078,2593.4,2593.1,0.2699]
[1726971162472,3.2078,2593.4,2593.0,1.7758785]
[1726971162675,3.2078,2593.4,2593.1,0.2699]
[1726971162882,3.2078,2593.4,2593.1,1.2729785]
[1726971163581,3.26985,2593.6,2593.1,1.0030785]
[1726971163882,3.2078,2593.4,2593.0,1.6565885]
[1726971164274,3.26985,2593.6,2593.0,1.6565885]
[1726971164470,3.2078,2593.4,2593.0,1.3866785]
[1726971164673,3.2078,2593.4,2593.3,0.26988]
[1726971164978,3.9729,2593.7,2593.3,0.26988]
[1726971165374,3.9729,2593.7,2593.2,1.2729685]
[1726971165687,4.24274,2593.7,2593.2,1.2729685]
[1726971166180,3.26986,2593.6,2593.1,1.2729785]
[1726971166377,3.26986,2593.6,2593.1,1.0030785]
[1726971166567,3.26986,2593.6,2593.1,1.2729785]
[1726971166968,3.0,2593.6,2593.2,0.26989]
[1726971167171,3.0,2593.6,2593.1,1.0030785]
[1726971167172,3.26985,2593.6,2593.1,1.0030785]
[1726971167472,3.0,2593.6,2593.1,1.2729785]
[1726971167667,3.0,2593.6,2593.1,1.0030785]
[1726971167975,0.26986,2593.5,2593.1,1.0030785]
[1726971168176,3.0,2593.6,2593.1,1.2729785]
[1726971168177,3.26985,2593.6,2593.1,1.2729785]
[1726971169274,0.26986,2593.5,2593.1,1.0030785]
[1726971169476,0.3841,2593.4,2593.1,1.0030785]
[1726971170078,0.65397,2593.4,2593.1,1.0030785]
[1726971170375,0.65398,2593.4,2593.0,1.6565885]
[1726971170678,0.3841,2593.4,2593.0,1.6565885]
[1726971171279,0.3841,2593.4,2593.1,0.2699]
[1726971171675,0.3841,2593.4,2593.0,1.6565885]
[1726971172374,0.3841,2593.4,2593.0,1.3866785]
[1726971172580,0.3841,2593.4,2593.0,1.6565885]
[1726971174176,0.65397,2593.4,2593.0,0.3836]
[1726971174381,0.3682,2593.3,2593.0,1.3866785]
[1726971175172,0.3682,2593.3,2593.0,0.3836]
[1726971175388,0.3682,2593.3,2593.0,0.65351]
[1726971176078,0.3682,2593.3,2593.0,0.3836]
[1726971176784,0.3682,2593.3,2593.0,1.6565885]
[1726971176999,3.0,2593.6,2593.0,1.3866785]
[1726971177287,3.3871,2593.6,2593.2,0.26989]
[1726971177795,3.3871,2593.6,2593.3,0.3898]
[1726971178387,3.65695,2593.6,2593.3,0.3898]
[1726971179685,3.3871,2593.6,2593.3,0.3898]
[1726971180485,0.3871,2593.6,2593.3,0.3898]
[1726971183176,3.65695,2593.6,2593.3,0.3898]
[1726971183792,3.3871,2593.6,2593.3,0.3898]
[1726971184187,3.65695,2593.6,2593.3,0.3898]
[1726971184384,3.3871,2593.6,2593.1,1.0030785]